bitfinex/quotes_BTCUSD_20240715
["timestamp","ask_amount","ask_price","bid_price","bid_amount"]
[1721012407746,1.41431075,62720.0,62719.0,0.39668]
[1721012407952,0.89131075,62720.0,62719.0,0.39668]
[1721012408243,0.62783041,62720.0,62719.0,0.46088001]
[1721012408982,0.30000001,62720.0,62719.0,0.46088001]
[1721012409227,0.35170653,62720.0,62719.0,0.45888]
[1721012409396,0.36841491,62720.0,62719.0,0.45888]
[1721012409793,0.36841491,62720.0,62719.0,0.46088001]
[1721012410282,0.31670839,62720.0,62719.0,0.46088001]
[1721012410431,0.41670839,62720.0,62719.0,0.46088001]
[1721012411050,0.46841491,62720.0,62719.0,0.46088001]
[1721012411771,1.4801159,62720.0,62719.0,0.31888]
[1721012411972,1.4341839,62720.0,62719.0,0.31888]
[1721012412131,0.60238007,62720.0,62719.0,0.31888]
[1721012412941,1.10238007,62720.0,62719.0,0.31888]
[1721012413167,0.60238007,62720.0,62719.0,0.31888]
[1721012413499,0.60238007,62720.0,62719.0,0.32088001]
[1721012413707,0.60238007,62720.0,62719.0,0.31888]
[1721012414077,1.10238007,62720.0,62719.0,0.31888]
[1721012414337,0.49141491,62720.0,62719.0,0.31888]
[1721012414538,0.49141491,62720.0,62719.0,0.32088001]
[1721012414744,0.49141491,62720.0,62719.0,0.38468001]
[1721012414951,0.41670839,62720.0,62719.0,0.46228001]
[1721012415123,0.31753839,62720.0,62719.0,0.46228001]
[1721012415552,0.31656196,62720.0,62719.0,0.46228001]
[1721012415876,0.31656196,62720.0,62719.0,0.46972668]
[1721012416390,0.41656196,62720.0,62719.0,0.46972668]
[1721012416648,0.41656196,62720.0,62719.0,0.47045668]
[1721012416649,0.57775888,62720.0,62719.0,0.47045668]
[1721012417972,0.57775437,62720.0,62719.0,0.47045668]
[1721012418370,0.71046088,62720.0,62719.0,0.32632667]
[1721012418605,0.72867847,62720.0,62719.0,0.32632667]
[1721012418736,0.49126848,62720.0,62719.0,0.32632667]
[1721012420375,0.59053848,62720.0,62719.0,0.32632667]
[1721012420589,0.82363547,62720.0,62719.0,0.32632667]
[1721012420912,0.64853847,62720.0,62719.0,0.32632667]
[1721012421195,0.99126848,62720.0,62719.0,0.32632667]
[1721012421397,1.04926847,62720.0,62719.0,0.32632667]
[1721012421896,0.99126848,62720.0,62719.0,0.32632667]
[1721012422250,1.04926847,62720.0,62719.0,0.32632667]
[1721012422452,1.04926847,62720.0,62719.0,0.38902668]
[1721012422453,0.46826848,62720.0,62719.0,0.38902668]
[1721012422649,0.46826848,62720.0,62719.0,0.38702667]
[1721012423398,0.41656196,62720.0,62719.0,0.38902668]
[1721012423942,0.41656196,62720.0,62719.0,0.38975668]
[1721012424143,0.31656196,62720.0,62719.0,0.47095668]
[1721012424354,0.31656196,62720.0,62719.0,0.53095668]
[1721012424558,0.45989296,62720.0,62719.0,0.53095668]
[1721012424756,0.31656196,62720.0,62719.0,0.53095668]
[1721012424958,0.31656196,62720.0,62719.0,0.73095668]
[1721012425206,0.31656196,62720.0,62719.0,0.53095668]
[1721012426902,0.35264254,62720.0,62719.0,0.53402021]
[1721012427100,0.23326196,62720.0,62719.0,0.53402021]
[1721012427311,0.45264313,62720.0,62719.0,0.53402021]
[1721012427476,0.45264313,62720.0,62719.0,0.53095668]
[1721012427477,0.33326196,62720.0,62719.0,0.53095668]
[1721012427939,0.45264313,62720.0,62719.0,0.53095668]
[1721012428134,0.45261602,62720.0,62719.0,0.53095668]
[1721012428338,0.33326196,62720.0,62719.0,0.53095668]
[1721012429018,0.42871926,62720.0,62719.0,0.53095668]
[1721012429220,0.42871926,62720.0,62719.0,0.83402021]
[1721012429221,0.08336196,62720.0,62719.0,0.83402021]
[1721012429457,0.11935406,62728.0,62727.0,0.14393001]
[1721012429636,0.14405487,62734.0,62729.0,0.11273001]
[1721012429637,0.11935406,62730.0,62729.0,0.11273001]
[1721012429842,0.3278304,62730.0,62729.0,0.43156001]
[1721012430072,0.44718446,62730.0,62729.0,0.4388036]
[1721012430245,0.44718446,62730.0,62729.0,0.3780736]
[1721012430246,0.37953692,62730.0,62729.0,0.3780736]
[1721012430448,0.37953692,62730.0,62729.0,0.31883]
[1721012431123,0.37953692,62730.0,62729.0,0.38483]
[1721012431124,0.4278304,62730.0,62729.0,0.38483]
[1721012431232,0.4278304,62730.0,62729.0,0.46456001]
[1721012431432,0.57088541,62730.0,62729.0,0.46456001]
[1721012431645,0.4278304,62730.0,62729.0,0.46456001]
[1721012431842,0.57088559,62730.0,62729.0,0.46456001]
[1721012432051,0.4278304,62730.0,62729.0,0.46456001]
[1721012432256,0.4278304,62730.0,62729.0,0.32083001]
[1721012432464,0.47953692,62730.0,62729.0,0.31883]
[1721012433103,0.47953692,62730.0,62729.0,0.32083001]
[1721012433302,0.4278304,62730.0,62729.0,0.32083001]
[1721012433951,0.47953692,62730.0,62729.0,0.32083001]
[1721012434552,0.4278304,62730.0,62729.0,0.32083001]
[1721012434759,0.4278304,62730.0,62729.0,0.32156001]
[1721012434959,0.24301741,62730.0,62729.0,0.32156001]
[1721012435162,0.1,62730.0,62729.0,0.32156001]
[1721012435742,0.1,62731.0,62730.0,0.00273001]
[1721012435953,0.24301741,62732.0,62731.0,0.00273001]
[1721012436155,0.1,62732.0,62731.0,0.52325001]
[1721012436309,0.00083,62734.0,62733.0,0.06273001]
[1721012436511,0.00083,62734.0,62733.0,0.32154001]
[1721012437148,0.00083,62734.0,62733.0,0.3847278]
[1721012437346,0.00083,62734.0,62733.0,0.3247278]
[1721012438257,0.11997189,62734.0,62733.0,0.3247278]
[1721012438477,0.21997189,62734.0,62733.0,0.32154001]
[1721012438644,0.10083,62734.0,62733.0,0.38154001]
[1721012438844,0.10083,62734.0,62733.0,0.32154001]
[1721012440206,0.2199626,62734.0,62733.0,0.32154001]
[1721012440380,0.10083,62734.0,62733.0,0.32154001]
[1721012440964,0.00083,62734.0,62733.0,0.32154001]
[1721012441249,0.00083,62734.0,62733.0,0.38472779]
[1721012441250,0.21996823,62734.0,62733.0,0.38472779]
[1721012441449,0.21996914,62734.0,62733.0,0.38472779]
[1721012441639,0.10083,62734.0,62733.0,0.38472779]
[1721012441844,0.1961389,62734.0,62733.0,0.38472779]
[1721012442199,0.0961389,62734.0,62733.0,0.38472779]
[1721012442409,0.00083,62734.0,62733.0,0.38472779]
[1721012442777,0.09614175,62734.0,62733.0,0.32154001]
[1721012443132,0.34822152,62734.0,62733.0,0.31881]
[1721012443334,0.36178889,62734.0,62733.0,0.31881]
[1721012443510,0.72849889,62734.0,62733.0,0.31881]
[1721012445088,0.64744651,62734.0,62733.0,0.31881]
[1721012445289,0.32273652,62734.0,62733.0,0.31881]
[1721012445493,0.3394449,62734.0,62733.0,0.31881]
[1721012445695,0.8394449,62734.0,62733.0,0.31881]
[1721012445901,0.9942399,62734.0,62733.0,0.31881]
[1721012446082,1.05223989,62734.0,62733.0,0.31881]
[1721012446729,0.8394449,62734.0,62733.0,0.31881]
[1721012447151,0.89744489,62734.0,62733.0,0.31881]
[1721012448097,1.42772489,62734.0,62733.0,0.31881]
[1721012448312,0.43657788,62734.0,62733.0,0.31881]
[1721012448509,0.93657788,62734.0,62733.0,0.31881]
[1721012449265,1.18371788,62734.0,62733.0,0.31881]
[1721012449679,1.24171787,62734.0,62733.0,0.31881]
[1721012450254,1.0865849,62734.0,62733.0,0.31881]
[1721012450459,0.9450309,62734.0,62733.0,0.31881]
[1721012450662,0.8164449,62734.0,62733.0,0.31881]
[1721012450863,1.81962252,62734.0,62733.0,0.31881]
[1721012451200,1.46304789,62734.0,62733.0,0.31881]
[1721012451500,1.60376043,62734.0,62733.0,0.31881]
[1721012451726,1.41107943,62734.0,62733.0,0.31881]
[1721012451935,1.48066743,62734.0,62733.0,0.31881]
[1721012452108,1.34286787,62734.0,62733.0,0.31881]
[1721012453328,1.54286787,62734.0,62733.0,0.31881]
[1721012453714,1.34286787,62734.0,62733.0,0.31881]
[1721012454115,1.80498578,62734.0,62733.0,0.31881]
[1721012454321,1.42962034,62734.0,62733.0,0.31881]
[1721012454567,1.73932685,62734.0,62733.0,0.31881]
[1721012455874,1.9534876,62734.0,62733.0,0.23544804]
[1721012456077,2.25323437,62734.0,62733.0,0.00224804]
[1721012456277,2.25323437,62734.0,62717.0,0.00306353]
[1721012456278,1.20897651,62721.0,62717.0,0.00306353]
[1721012456455,4.5385579,62721.0,62720.0,0.319793]
[1721012456658,2.1997659,62721.0,62720.0,0.319793]
[1721012456864,2.36188381,62721.0,62720.0,0.319793]
[1721012457068,4.46694381,62721.0,62720.0,0.319793]
[1721012457250,4.46786661,62721.0,62720.0,0.319793]
[1721012457450,4.37159561,62721.0,62720.0,0.319793]
[1721012457917,4.46872859,62721.0,62720.0,0.319793]
[1721012458046,4.46872859,62721.0,62720.0,0.318275]
[1721012458452,4.51872843,62721.0,62720.0,0.318275]
[1721012458680,2.15779952,62721.0,62720.0,0.318275]
[1721012458903,1.40852968,62721.0,62720.0,0.318275]
[1721012459118,1.43072968,62721.0,62720.0,0.318275]
[1721012459321,2.5802179,62721.0,62720.0,0.318275]
[1721012459479,3.73464554,62721.0,62720.0,0.318275]
[1721012459768,3.78464538,62721.0,62720.0,0.318275]
[1721012459986,3.82527167,62721.0,62720.0,0.168375]
[1721012460208,3.79597167,62721.0,62720.0,0.085075]
[1721012460409,3.72156041,62721.0,62720.0,0.085075]
[1721012460609,3.81969686,62721.0,62720.0,0.085075]
[1721012460818,2.83552459,62721.0,62720.0,0.085075]
[1721012461053,3.63386625,62721.0,62720.0,0.085075]
[1721012461267,3.40088825,62721.0,62720.0,0.085075]
[1721012461438,8.45088825,62721.0,62720.0,0.085075]
[1721012461654,7.31508885,62721.0,62720.0,0.085075]
[1721012461858,7.90204276,62721.0,62720.0,0.085075]
[1721012462064,7.69391676,62721.0,62720.0,0.085075]
[1721012462270,5.79356498,62721.0,62720.0,0.085075]
[1721012462428,6.49356498,62721.0,62720.0,0.085075]
[1721012462872,6.23578239,62721.0,62720.0,0.085075]
[1721012463277,6.38578239,62721.0,62720.0,0.061075]
[1721012463485,6.5479003,62721.0,62720.0,0.061075]
[1721012463910,6.5479003,62721.0,62716.0,1.995913]
[1721012463911,0.74007651,62717.0,62716.0,1.995913]
[1721012464062,6.16953082,62717.0,62716.0,1.995913]
[1721012464264,5.69258952,62717.0,62716.0,2.314813]
[1721012464491,6.40789843,62717.0,62716.0,2.314813]
[1721012464647,6.24578052,62717.0,62716.0,2.314813]
[1721012464850,5.64454372,62717.0,62716.0,2.314813]
[1721012465092,6.34435182,62717.0,62716.0,2.314813]
[1721012465292,6.4414848,62717.0,62716.0,2.314813]
[1721012465494,6.4644848,62717.0,62716.0,2.314813]
[1721012465651,6.62660271,62717.0,62716.0,2.30257197]
[1721012465868,6.62660271,62717.0,62716.0,2.29468732]
[1721012466076,6.62683769,62717.0,62716.0,2.29468732]
[1721012466695,6.77683769,62717.0,62716.0,2.29468732]
[1721012466872,9.0887508,62717.0,62716.0,2.29468732]
[1721012467235,9.51984528,62717.0,62716.0,2.29468732]
[1721012468236,9.36984528,62717.0,62716.0,2.23532776]
[1721012468443,9.18472737,62717.0,62716.0,2.17275103]
[1721012468754,9.18403509,62717.0,62716.0,2.17275103]
[1721012469118,8.85620469,62717.0,62716.0,2.17275103]
[1721012469310,8.75720651,62717.0,62716.0,2.17275103]
[1721012469534,8.91932442,62717.0,62716.0,2.17275103]
[1721012469925,9.01842959,62717.0,62716.0,2.17275103]
[1721012470144,8.34142959,62717.0,62716.0,2.17275103]
[1721012470590,9.42051331,62717.0,62716.0,2.17275103]
[1721012470795,8.49142959,62717.0,62716.0,2.17275103]
[1721012470982,8.5633954,62717.0,62716.0,2.17275103]
[1721012471183,8.17931168,62717.0,62716.0,2.17275103]
[1721012471559,8.87931168,62717.0,62716.0,2.17275103]
[1721012471964,8.08020651,62717.0,62716.0,2.17275103]
[1721012472165,1.52708461,62706.0,62691.0,0.002]
[1721012472386,1.39875061,62692.0,62691.0,0.002]
[1721012472747,6.39527832,62692.0,62691.0,0.32102]
[1721012472932,10.37729132,62692.0,62691.0,0.32102]
[1721012473084,10.64262832,62692.0,62691.0,0.32102]
[1721012473425,9.94262832,62692.0,62691.0,0.32102]
[1721012473628,10.64262832,62692.0,62691.0,0.32102]
[1721012473837,10.44062849,62692.0,62691.0,0.32102]
[1721012474065,10.62858523,62692.0,62691.0,0.32102]
[1721012474177,10.65158523,62692.0,62691.0,0.32102]
[1721012474379,10.79397198,62692.0,62691.0,0.32102]
[1721012474664,10.55983323,62692.0,62691.0,0.32102]
[1721012474822,10.70221998,62692.0,62691.0,0.32102]
[1721012475024,10.73633323,62692.0,62691.0,0.32102]
[1721012475233,11.57502419,62692.0,62691.0,0.32102]
[1721012475636,11.57443426,62692.0,62691.0,0.31416567]
[1721012476072,11.73346073,62692.0,62691.0,0.31416567]
[1721012476278,11.59114264,62692.0,62691.0,0.31416567]
[1721012476619,11.59114264,62692.0,62691.0,0.24760783]
[1721012476819,0.62478816,62691.0,62690.0,0.009152]
[1721012477024,6.24284311,62691.0,62690.0,0.328182]
[1721012477222,0.67649468,62689.0,62688.0,0.009152]
[1721012477425,6.10057742,62689.0,62688.0,0.009152]
[1721012477643,0.67649468,62687.0,62686.0,0.00031328]
[1721012477844,6.78345951,62687.0,62686.0,0.31936328]
[1721012478052,6.94557742,62687.0,62686.0,0.31936328]
[1721012478304,7.74201812,62687.0,62686.0,0.31936328]
[1721012478917,7.58700412,62687.0,62686.0,0.31936328]
[1721012479139,9.4275774,62687.0,62686.0,0.31936328]
[1721012479768,9.4275774,62687.0,62670.0,0.009163]
[1721012479769,1.40299468,62683.0,62670.0,0.009163]
[1721012479951,7.23271626,62683.0,62670.0,0.009163]
[1721012480156,1.15648816,62672.0,62670.0,0.009163]
[1721012480372,11.30460415,62672.0,62670.0,0.009163]
[1721012480493,11.30460415,62672.0,62671.0,0.31912]
[1721012480494,9.82703935,62672.0,62671.0,0.31912]
[1721012480695,6.41013165,62672.0,62671.0,0.31912]
[1721012480895,7.15828374,62672.0,62671.0,0.31912]
[1721012481095,7.32658374,62672.0,62671.0,0.31912]
[1721012481345,7.48870165,62672.0,62671.0,0.31912]
[1721012482239,7.53475834,62672.0,62671.0,0.31912]
[1721012482824,7.48870165,62672.0,62671.0,0.25166889]
[1721012484013,5.96919278,62672.0,62671.0,0.25166889]
[1721012484213,6.16919278,62672.0,62671.0,0.32926889]
[1721012484360,6.16919278,62672.0,62671.0,0.25166889]
[1721012484744,5.53325378,62672.0,62671.0,0.25166889]
[1721012484974,6.23325378,62672.0,62671.0,0.25166889]
[1721012485183,6.39537169,62672.0,62671.0,0.25166889]
[1721012485386,6.06754129,62672.0,62671.0,0.25166889]
[1721012485586,5.89924129,62672.0,62671.0,0.25166889]
[1721012487667,5.89924129,62672.0,62671.0,0.24458558]
[1721012488930,5.73712338,62672.0,62671.0,0.24458558]
[1721012490154,6.19746018,62672.0,62671.0,0.24458558]
[1721012490752,7.09268656,62672.0,62671.0,0.24458558]
[1721012491006,6.24768656,62672.0,62671.0,0.24458558]
[1721012491476,6.96439494,62672.0,62671.0,0.24458558]
[1721012491646,7.27651285,62672.0,62671.0,0.0860512]
[1721012492556,0.65976,62671.0,62670.0,0.009163]
[1721012492734,10.12753256,62671.0,62670.0,0.009163]
[1721012492915,10.28965047,62671.0,62670.0,0.009163]
[1721012493101,10.28965047,62671.0,62670.0,0.328293]
[1721012493469,10.79175556,62671.0,62670.0,0.309967]
[1721012493604,10.45899026,62671.0,62670.0,0.309967]
[1721012493800,9.75899026,62671.0,62670.0,0.309967]
[1721012494132,10.45899026,62671.0,62670.0,0.309967]
[1721012494311,10.62110817,62671.0,62670.0,0.309967]
[1721012494716,10.77110817,62671.0,62670.0,0.309967]
[1721012496182,11.46610817,62671.0,62670.0,0.309967]
[1721012496381,10.55376388,62671.0,62670.0,0.309967]
[1721012496592,11.3254288,62671.0,62670.0,0.309967]
[1721012497172,11.1666298,62671.0,62670.0,0.309967]
[1721012497857,10.8387994,62671.0,62670.0,0.309967]
[1721012498194,10.06705339,62671.0,62670.0,0.309967]
[1721012498483,9.99465351,62671.0,62670.0,0.309967]
[1721012498677,9.84837851,62671.0,62670.0,0.309967]
[1721012498902,9.92004343,62671.0,62670.0,0.309967]
[1721012500283,10.07004343,62671.0,62670.0,0.26299415]
[1721012500628,10.07004343,62671.0,62670.0,0.26229926]
[1721012500629,9.92004343,62671.0,62670.0,0.26229926]
[1721012501216,9.75792552,62671.0,62670.0,0.26229926]
[1721012501434,9.6862606,62671.0,62670.0,0.26229926]
[1721012502428,9.75792552,62671.0,62670.0,0.26229926]
[1721012502633,9.05792552,62671.0,62670.0,0.26229926]
[1721012503029,9.75792552,62671.0,62670.0,0.26229926]
[1721012503236,9.92004343,62671.0,62670.0,0.26229926]
[1721012503400,9.92004343,62671.0,62670.0,0.26129926]
[1721012503601,14.11374826,62671.0,62670.0,0.26129926]
[1721012504223,14.11374826,62671.0,62670.0,0.26029926]
[1721012504463,13.50886048,62671.0,62670.0,0.26029926]
[1721012504666,13.5088618,62671.0,62670.0,0.26029926]
[1721012505080,13.6588618,62671.0,62670.0,0.25929926]
[1721012505289,13.41374826,62671.0,62670.0,0.25929926]
[1721012505528,14.42774826,62671.0,62670.0,0.25929926]
[1721012505873,14.27774826,62671.0,62670.0,0.25829926]
[1721012506110,14.42774826,62671.0,62670.0,0.23073456]
[1721012506355,10.93833885,62671.0,62670.0,0.23073456]
[1721012506754,10.93833885,62671.0,62657.0,0.009174]
[1721012506755,1.37649468,62658.0,62657.0,0.009174]
[1721012506997,7.16059273,62658.0,62657.0,0.328374]
[1721012507151,7.25671389,62658.0,62657.0,0.328374]
[1721012507370,7.25671389,62658.0,62651.0,0.002]
[1721012507371,0.50819468,62654.0,62651.0,0.002]
[1721012507598,5.95532811,62654.0,62651.0,0.002]
[1721012507797,0.67649468,62652.0,62651.0,0.002]
[1721012508028,11.58650174,62652.0,62651.0,0.10067]
[1721012508368,11.58650174,62652.0,62650.0,0.000913]
[1721012508369,1.66213776,62651.0,62650.0,0.000913]
[1721012508516,7.30993463,62651.0,62650.0,0.000913]
[1721012508716,1.37649468,62638.0,62631.0,0.0651]
[1721012509042,14.34291228,62638.0,62631.0,0.0651]
[1721012509199,14.58188529,62638.0,62631.0,0.0651]
[1721012509403,15.13903344,62638.0,62631.0,0.0651]
[1721012510918,0.45648816,62637.0,62631.0,0.0651]
[1721012511120,9.53764757,62637.0,62631.0,0.0651]
[1721012511324,6.70126618,62637.0,62631.0,0.0651]
[1721012511655,6.32156853,62637.0,62631.0,0.0651]
[1721012511854,6.26732353,62637.0,62631.0,0.0651]
[1721012512058,6.96732353,62637.0,62631.0,0.0651]
[1721012512380,7.02156853,62637.0,62631.0,0.0651]
[1721012512528,7.16436858,62637.0,62631.0,0.0651]
[1721012512756,7.18368644,62637.0,62631.0,0.0651]
[1721012512958,6.83026853,62637.0,62631.0,0.0651]
[1721012513163,6.89491545,62637.0,62631.0,0.0651]
[1721012513363,6.94916045,62637.0,62631.0,0.0651]
[1721012513569,6.99856853,62637.0,62631.0,0.0651]
[1721012514162,6.98527992,62637.0,62631.0,0.0651]
[1721012514366,7.18368535,62637.0,62631.0,0.0651]
[1721012514603,11.37889018,62637.0,62631.0,0.0651]
[1721012514805,9.92526965,62637.0,62631.0,0.0651]
[1721012515285,10.02102465,62637.0,62631.0,0.0651]
[1721012515485,9.96830819,62637.0,62631.0,0.0651]
[1721012515756,9.96830819,62637.0,62631.0,0.002]
[1721012515757,0.67649468,62633.0,62631.0,0.002]
[1721012515967,6.3640382,62633.0,62631.0,0.002]
[1721012516136,0.65677816,62632.0,62631.0,0.002]
[1721012516339,3.01274711,62632.0,62631.0,0.002]
[1721012516589,1.55848468,62629.0,62618.0,0.0776]
[1721012516796,8.32095778,62629.0,62618.0,0.0776]
[1721012516993,0.62478816,62624.0,62618.0,0.0776]
[1721012517205,0.62478816,62624.0,62611.0,0.002]
[1721012517206,14.64036666,62624.0,62611.0,0.002]
[1721012517412,1.15648816,62612.0,62611.0,0.0684]
[1721012517540,9.8815194,62612.0,62611.0,0.0684]
[1721012517754,9.9357644,62612.0,62611.0,0.0684]
[1721012517937,10.14729039,62612.0,62611.0,0.0684]
[1721012518340,10.06812231,62612.0,62611.0,0.0684]
[1721012518541,9.80374131,62612.0,62611.0,0.0684]
[1721012518985,9.89986247,62612.0,62611.0,0.0684]
[1721012519185,9.94927055,62612.0,62611.0,0.0684]
[1721012519389,9.77290555,62612.0,62611.0,0.0684]
[1721012519628,9.57509347,62612.0,62611.0,0.0684]
[1721012519800,9.40679347,62612.0,62611.0,0.0684]
[1721012520035,9.24467556,62612.0,62611.0,0.0684]
[1721012520209,9.19043056,62612.0,62611.0,0.0684]
[1721012520487,9.66433956,62612.0,62611.0,0.0667895]
[1721012520703,9.71858514,62612.0,62611.0,0.0667895]
[1721012520882,9.21786314,62612.0,62611.0,0.0667895]
[1721012521088,8.692937,62612.0,62611.0,0.0667895]
[1721012521255,8.692937,62612.0,62611.0,0.0003895]
[1721012521599,8.692937,62612.0,62609.0,0.00325196]
[1721012521600,0.65819468,62610.0,62609.0,0.00325196]
[1721012521731,6.79457067,62610.0,62609.0,0.00325196]
[1721012522074,0.80357782,62609.0,62597.0,0.0629]
[1721012522316,5.81663286,62609.0,62597.0,0.0629]
[1721012522516,0.62478816,62608.0,62597.0,0.0629]
[1721012522629,1.37649468,62598.0,62597.0,0.05536563]
[1721012522848,6.80829654,62598.0,62597.0,0.05536563]
[1721012523055,7.00671004,62598.0,62597.0,0.05536563]
[1721012523610,6.83841004,62598.0,62597.0,0.05536563]
[1721012523808,7.54459213,62598.0,62597.0,0.05536563]
[1721012524804,7.64071329,62598.0,62597.0,0.05536563]
[1721012525034,7.47222119,62598.0,62597.0,0.05536563]
[1721012525207,7.42281311,62598.0,62597.0,0.05536563]
[1721012525413,7.58493102,62598.0,62597.0,0.05536563]
[1721012525614,7.58493102,62598.0,62591.0,0.002]
[1721012525615,0.50800258,62592.0,62591.0,0.002]
[1721012525817,5.46356417,62592.0,62591.0,0.002]
[1721012526016,5.32415758,62592.0,62591.0,0.084]
[1721012526221,5.93205958,62592.0,62591.0,0.084]
[1721012526420,5.99960003,62592.0,62591.0,0.084]
[1721012526596,5.98630458,62592.0,62591.0,0.084]
[1721012526804,5.93205958,62592.0,62591.0,0.084]
[1721012527185,5.86308558,62592.0,62591.0,0.084]
[1721012527385,5.9416692,62592.0,62591.0,0.084]
[1721012527626,5.96673866,62592.0,62591.0,0.084]
[1721012529052,6.13503866,62592.0,62591.0,0.084]
[1721012529463,5.98003421,62592.0,62591.0,0.084]
[1721012529832,5.96673866,62592.0,62591.0,0.084]
[1721012529965,5.26673866,62592.0,62591.0,0.084]
[1721012530161,6.12885657,62592.0,62591.0,0.084]
[1721012530381,6.14215215,62592.0,62591.0,0.084]
[1721012530570,6.12885657,62592.0,62591.0,0.084]
[1721012530991,6.14215224,62592.0,62591.0,0.084]
[1721012531517,5.44215224,62592.0,62591.0,0.084]
[1721012531722,5.96673866,62592.0,62591.0,0.084]
[1721012532249,6.68003393,62592.0,62591.0,0.084]
[1721012532472,6.66673866,62592.0,62591.0,0.084]
[1721012532628,6.68003419,62592.0,62591.0,0.084]
[1721012532794,6.68003419,62592.0,62591.0,0.1479]
[1721012532795,5.74973919,62592.0,62591.0,0.1479]
[1721012532994,3.18230252,62592.0,62591.0,0.1479]
[1721012533199,2.85081252,62592.0,62591.0,0.1479]
[1721012533412,2.95081252,62592.0,62591.0,0.1479]
[1721012533613,3.27546099,62592.0,62591.0,0.144275]
[1721012533977,3.00783858,62592.0,62591.0,0.14219125]
[1721012534125,2.95154252,62592.0,62591.0,0.14219125]
[1721012534308,2.47234752,62592.0,62591.0,0.14219125]
[1721012534516,2.69534752,62592.0,62591.0,0.14219125]
[1721012534719,1.99534752,62592.0,62591.0,0.14219125]
[1721012534936,2.49534752,62592.0,62591.0,0.14219125]
[1721012535577,1.99534752,62592.0,62591.0,0.14219125]
[1721012535783,2.49534752,62592.0,62591.0,0.14219125]
[1721012536235,0.68800047,62592.0,62591.0,0.14219125]
[1721012536449,3.12355047,62592.0,62591.0,0.14219125]
[1721012537470,3.28566838,62592.0,62591.0,0.14219125]
[1721012537665,3.32355047,62592.0,62591.0,0.14219125]
[1721012537843,3.38057653,62592.0,62591.0,0.14219125]
[1721012538060,3.45152991,62592.0,62591.0,0.14219125]
[1721012538266,3.43823596,62592.0,62591.0,0.14219125]
[1721012538443,3.47881174,62592.0,62591.0,0.14219125]
[1721012538977,3.61326697,62592.0,62591.0,0.14219125]
[1721012539220,3.97806071,62592.0,62591.0,0.14219125]
[1721012539417,4.12746879,62592.0,62591.0,0.14219125]
[1721012539620,4.99576879,62592.0,62591.0,0.14219125]
[1721012539824,4.88644875,62592.0,62591.0,0.14219125]
[1721012540023,4.87315385,62592.0,62591.0,0.14219125]
[1721012540178,4.71103594,62592.0,62591.0,0.14219125]
[1721012540531,4.71103594,62592.0,62591.0,0.14117554]
[1721012541071,4.72433169,62592.0,62591.0,0.14117554]
[1721012541276,4.72433173,62592.0,62591.0,0.14117554]
[1721012541673,4.88644964,62592.0,62591.0,0.14117554]
[1721012542064,4.88644964,62592.0,62591.0,0.0639]
[1721012542262,5.05474964,62592.0,62591.0,0.0639]
[1721012542665,5.05524964,62592.0,62591.0,0.0639]
[1721012543317,0.55170652,62575.0,62574.0,0.0217607]
[1721012543708,1.86674371,62575.0,62574.0,0.10693464]
[1721012543977,0.6629174,62575.0,62574.0,0.17173464]
[1721012544176,0.322867,62575.0,62574.0,0.17173464]
[1721012544378,0.4278304,62575.0,62574.0,0.17173464]
[1721012544743,0.9127784,62575.0,62574.0,0.17173464]
[1721012544922,1.25272699,62575.0,62574.0,0.17173464]
[1721012545125,1.30443348,62575.0,62574.0,0.17173464]
[1721012545382,1.06749787,62575.0,62574.0,0.17173464]
[1721012545641,0.56599135,62575.0,62574.0,0.17173464]
[1721012545865,1.06599077,62575.0,62574.0,0.17173464]
[1721012546076,1.07593077,62575.0,62574.0,0.17173464]
[1721012546284,0.57593077,62575.0,62574.0,0.17173464]
[1721012546458,0.57593077,62575.0,62574.0,0.25576464]
[1721012546459,0.44112577,62575.0,62574.0,0.25576464]
[1721012546655,0.4278304,62575.0,62574.0,0.25576464]
[1721012547366,0.44112491,62575.0,62574.0,0.25576464]
[1721012548157,1.07654119,62575.0,62574.0,0.25576464]
[1721012548566,0.73850179,62575.0,62574.0,0.25576464]
[1721012548765,0.73850218,62575.0,62574.0,0.25576464]
[1721012549266,1.47739818,62575.0,62574.0,0.25576464]
[1721012549430,1.54047818,62575.0,62574.0,0.17173464]
[1721012549639,1.13688918,62575.0,62574.0,0.17173464]
[1721012549862,1.2428407,62575.0,62574.0,0.1687607]
[1721012550976,1.34044254,62575.0,62574.0,0.1687607]
[1721012552113,1.28873602,62575.0,62574.0,0.17173464]
[1721012552248,1.23449175,62575.0,62574.0,0.17173464]
[1721012553223,0.63688991,62575.0,62574.0,0.17173464]
[1721012553430,1.09128529,62575.0,62574.0,0.17173464]
[1721012553642,0.59128529,62575.0,62574.0,0.23173464]
[1721012553844,0.59128529,62575.0,62574.0,0.17173464]
[1721012553845,1.09128529,62575.0,62574.0,0.17173464]
[1721012553969,1.09128529,62575.0,62574.0,0.25576464]
[1721012554170,1.09128529,62575.0,62574.0,0.31576464]
[1721012554372,1.09128529,62575.0,62574.0,0.25576464]
[1721012554593,0.59128529,62575.0,62574.0,0.31576464]
[1721012554796,0.59128529,62575.0,62574.0,0.25576464]
[1721012555322,0.57798938,62575.0,62574.0,0.25576464]
[1721012555479,0.59128429,62575.0,62574.0,0.25576464]
[1721012555878,0.59128435,62575.0,62574.0,0.25576464]
[1721012557293,0.59128435,62575.0,62574.0,0.31576464]
[1721012558060,0.59128435,62575.0,62574.0,0.1687607]
[1721012558204,1.09128435,62575.0,62574.0,0.16871815]
[1721012558601,1.1296959,62575.0,62574.0,0.16871815]
[1721012558784,1.14299149,62575.0,62574.0,0.16871815]
[1721012558989,1.262586,62575.0,62574.0,0.16871815]
[1721012559207,1.262586,62575.0,62574.0,0.02171815]
[1721012559208,1.75437631,62575.0,62574.0,0.02171815]
[1721012559374,2.20411375,62575.0,62574.0,0.02171815]
[1721012559576,1.94962617,62575.0,62574.0,0.02171815]
[1721012559940,2.00768164,62575.0,62574.0,0.02171815]
[1721012560142,2.41143334,62575.0,62574.0,0.01862784]
[1721012560344,2.17598164,62575.0,62574.0,0.01862784]
[1721012560649,6.58163564,62575.0,62574.0,0.00030234]
[1721012560881,6.99524764,62575.0,62574.0,0.00030234]
[1721012561288,6.51225264,62575.0,62574.0,0.00030234]
[1721012561491,5.50223125,62575.0,62574.0,0.00030234]
[1721012561603,4.95689775,62575.0,62574.0,0.00030234]
[1721012561803,5.49418882,62575.0,62574.0,0.00030234]
[1721012562020,4.50190782,62575.0,62574.0,0.13910234]
[1721012562223,2.59649245,62575.0,62574.0,0.14207628]
[1721012562444,3.09649245,62575.0,62574.0,0.13910234]
[1721012562880,3.09649245,62575.0,62574.0,0.14207628]
[1721012563305,3.09649245,62575.0,62574.0,0.22610628]